fUSD/lending_fUSD_20240113
["ID","MTS","AMOUNT","RATE_DAILY","PERIOD"]
[311492566,1705162318324,-320.73419302,0.00022884,2]
[311492567,1705162318333,-500.0,0.00022884,2]
[311492568,1705162318342,-500.0,0.00022884,2]
[311492569,1705162318354,-500.0,0.00022884,2]
[311492570,1705162318364,-500.44320249,0.00022884,2]
[311492571,1705162318374,-236.37961589,0.00022884,2]
[311492572,1705162318383,-500.0,0.00022884,2]
[311492573,1705162318392,-516.1743552,0.00022884,2]
[311492574,1705162318401,-500.0,0.00022884,2]
[311492575,1705162318410,-278.37503341,0.00022884,2]
[311492576,1705162318419,-866.14,0.00022884,2]
[311492577,1705162318429,-866.14,0.00022884,2]
[311492578,1705162318438,-866.14,0.00022884,2]
[311492579,1705162318447,-866.14,0.00022884,2]
[311492580,1705162318457,-866.19,0.00022884,2]
[311492581,1705162318467,-500.0,0.00022884,2]
[311492582,1705162318477,-528.75536805,0.00022884,2]
[311492583,1705162318487,-196.91868361,0.00022887,2]
[311492584,1705162318497,-155.0,0.00022887,2]
[311492585,1705162318507,-500.0,0.00022887,2]
[311492586,1705162318516,-504.61045006,0.00022887,2]
[311492587,1705162318526,-150.01,0.00022888,2]
[311492588,1705162318536,-2170.55410207,0.00022888,2]
[311492589,1705162318546,-160.0,0.00022891,2]
[311492590,1705162318555,-16000.0,0.00022891,2]
[311492591,1705162318565,-403279.61112911,0.000229,2]
[311492592,1705162318575,-1322.45526597,0.000229,2]
[311492593,1705162318584,-177.17930461,0.000229,2]
[311492594,1705162318593,-160.0,0.000229,2]
[311492595,1705162318603,-16000.0,0.000229,2]
[311492596,1705162318612,-309.47548132,0.000229,2]
[311492597,1705162318622,-314.00494018,0.000229,2]
[311492598,1705162318631,-187.95872347,0.000229,2]
[311492599,1705162318641,-2271.0,0.0002291,2]
[311492600,1705162318651,-19683.0,0.0002291,2]
[311492601,1705162318661,-7343.0,0.0002291,2]
[311492602,1705162318670,-5696.692,0.0002291,2]
[311492603,1705162318679,-2989.409,0.0002291,2]
[311492604,1705162318689,-25082.993,0.0002291,2]
[311492605,1705162318699,-770.716,0.0002291,2]
[311492606,1705162318708,-8103.309,0.0002291,2]
[311492607,1705162318718,-213.722,0.0002291,2]
[311492608,1705162318728,-1046.575,0.0002291,2]
[311492609,1705162318739,-153.93,0.00022963,2]
[311492610,1705162318748,-159.35,0.00022973,2]
[311492611,1705162318758,-150.0,0.00022979,2]
[311492612,1705162318767,-150.0,0.00022979,2]
[311492613,1705162318778,-151218.03945697,0.0002298,2]
[311492614,1705162318788,-150.0,0.00022991,2]
[311492615,1705162318797,-150.0,0.00022991,2]
[311492616,1705162318807,-150.0,0.00022991,2]
[311492617,1705162318818,-385.0,0.00022991,2]
[311492618,1705162318828,-1355.0,0.00022991,2]
[311492619,1705162318838,-439.911,0.00022991,2]
[311492620,1705162318848,-947.18,0.00022991,2]
[311492621,1705162318858,-1773.46472742,0.00022998,2]
[311492622,1705162318867,-155.30884518,0.00022998,2]
[311492623,1705162318877,-215.78354203,0.00022998,2]
[311492624,1705162318886,-296.72949073,0.00022998,2]
[311492625,1705162318895,-151.0,0.00022999,2]
[311492626,1705162318906,-150.0,0.00022999,2]
[311492627,1705162318917,-150.0,0.00022999,2]
[311492628,1705162318926,-150.0,0.00022999,2]
[311492629,1705162318936,-150.0,0.00022999,2]
[311492630,1705162318945,-150.0,0.00022999,2]
[311492631,1705162318954,-150.0,0.00022999,2]
[311492632,1705162318963,-150.0,0.00022999,2]
[311492633,1705162318972,-150.0,0.00022999,2]
[311492634,1705162318982,-150.0,0.00022999,2]
[311492635,1705162318991,-150.0,0.00022999,2]
[311492636,1705162319001,-150.0,0.00022999,2]
[311492637,1705162319010,-150.0,0.00022999,2]
[311492638,1705162319019,-150.0,0.00022999,2]
[311492639,1705162319030,-150.0,0.00022999,2]
[311492640,1705162319039,-150.0,0.00022999,2]
[311492641,1705162319048,-150.0,0.00022999,2]
[311492642,1705162319057,-150.0,0.00022999,2]
[311492643,1705162319066,-150.0,0.00022999,2]
[311492644,1705162319075,-150.0,0.00022999,2]
[311492645,1705162319085,-150.0,0.00022999,2]
[311492646,1705162319094,-150.0,0.00022999,2]
[311492647,1705162319103,-150.0,0.00022999,2]
[311492648,1705162319112,-150.0,0.00022999,2]
[311492649,1705162319122,-150.0,0.00022999,2]
[311492650,1705162319132,-150.0,0.00022999,2]
[311492651,1705162319141,-150.0,0.00022999,2]
[311492652,1705162319151,-150.0,0.00022999,2]
[311492653,1705162319160,-150.0,0.00022999,2]
[311492654,1705162319169,-150.0,0.00022999,2]
[311492655,1705162319178,-150.0,0.00022999,2]
[311492656,1705162319188,-150.0,0.00022999,2]
[311492657,1705162319198,-150.0,0.00022999,2]
[311492658,1705162319207,-150.0,0.00022999,2]
[311492659,1705162319216,-150.0,0.00022999,2]
[311492660,1705162319226,-150.0,0.00022999,2]
[311492661,1705162319236,-150.0,0.00022999,2]
[311492662,1705162319244,-150.0,0.00022999,2]
[311492663,1705162319254,-150.0,0.00022999,2]
[311492664,1705162319263,-150.0,0.00022999,2]
[311492665,1705162319272,-150.0,0.00022999,2]
[311492666,1705162319282,-150.0,0.00022999,2]
[311492667,1705162319291,-150.0,0.00022999,2]
[311492668,1705162319301,-150.0,0.00022999,2]
[311492669,1705162319310,-150.0,0.00022999,2]
[311492670,1705162319319,-4896179.0214218,0.00023,2]
[311492671,1705162319329,-980.81556203,0.00023,2]
[311492672,1705162319339,-239378.28766255,0.00023,2]
[311492673,1705162319348,-9549675.84195182,0.00023,2]
[311492674,1705162319855,-863.68793799,0.00023,2]
[311492675,1705162319868,-510.3416741,0.00023,2]
[311492676,1705162320162,-872.1,0.00022795,2]
[311492677,1705162320172,-500.0,0.00022795,2]
[311492678,1705162320181,-30934.08749215,0.00023,2]
[311492679,1705162320195,-951.26132272,0.00023,2]
[311492680,1705162320207,-455.23866117,0.00023,2]
[311492681,1705162320221,-343.81017987,0.00023,2]
[311492682,1705162320531,-417.85531207,0.000226,2]
[311492683,1705162320550,-0.09468793,0.000226,2]
[311492684,1705162320559,-613.87836038,0.000227,2]
[311492685,1705162320572,-1268.59163962,0.000227,2]
[311492686,1705162320580,-294.03,0.000227,2]
[311492687,1705162320589,-517.80726168,0.00022795,2]
[311492688,1705162320598,-872.1,0.00022795,2]
[311492689,1705162320607,-872.1,0.00022795,2]
[311492690,1705162320617,-872.1,0.00022795,2]
[311492691,1705162320626,-872.1,0.00022795,2]
[311492692,1705162320636,-3212.89,0.00022797,2]
[311492693,1705162320645,-207.35128509,0.00022797,2]
[311492694,1705162320657,-3005.53871491,0.00022797,2]
[311492695,1705162320666,-3212.89,0.00022797,2]
[311492696,1705162320675,-3212.89478619,0.00022797,2]
[311492697,1705162320685,-13630.09711686,0.00023,2]
[311492698,1705162320813,-6563.84841963,0.00022265,2]
[311492699,1705162320823,-401.27,0.000226,2]
[311492700,1705162320833,-314.25,0.000227,2]
[311492701,1705162320843,-872.1,0.00022795,2]
[311492702,1705162320852,-872.1015557,0.00022795,2]
[311492703,1705162320862,-10974.8222881,0.00023,2]
[311492704,1705162320873,-1757.30683162,0.00023,2]
[311492705,1705162320925,-277.00956143,0.00023,2]
[311492706,1705162320970,-1248.55483768,0.00023,2]
[311492707,1705162320982,-1190.52758787,0.00023,2]
[311492708,1705162320994,-469.302,0.00023,2]
[311492709,1705162321011,-45565.84975901,0.00023,2]
[311492710,1705162325942,150.0,0.00021795,2]
[311492711,1705162328727,-155.0,0.00022262,2]
[311492712,1705162328750,-23595.0,0.00022262,2]
[311492714,1705162330395,156.74,0.00021824,2]
[311492715,1705162343091,158.76,0.00021612,2]
[311492716,1705162343279,158.76,0.00021882,2]
[311492717,1705162343500,158.76,0.00022152,2]
[311492720,1705162374794,210.92079247,0.00022163,2]
[311492725,1705162459560,3820.4066,0.00022162,2]
[311492726,1705162460749,492.48,0.00021479,2]
[311492728,1705162462725,323.95457532,0.00022163,2]
[311492729,1705162468057,1746.68,0.00021658,2]
[311492731,1705162489692,2965.1826,0.00022162,2]
[311492736,1705162583002,323.95457532,0.00022163,2]
[311492737,1705162590440,616.41,0.00021444,2]
[311492738,1705162605838,-500.0,0.00022488,5]
[311492739,1705162605861,-500.0,0.00022488,5]
[311492740,1705162605883,-500.0,0.00022488,5]
[311492741,1705162605906,-177.95,0.00022488,5]
[311492742,1705162605948,-500.0,0.00022492,5]
[311492743,1705162605970,-322.05,0.00022492,5]
[311492744,1705162608328,328.0,0.00021445,2]
[311492745,1705162614902,-177.95,0.00022492,5]
[311492746,1705162614925,-500.0,0.00022492,5]
[311492747,1705162614948,-351.81,0.00022492,5]
[311492748,1705162622269,-1470.24,0.0002226,4]
[311492749,1705162641939,1410.6635,0.00022162,2]
[311492750,1705162656512,198.5442,0.0002216,2]
[311492751,1705162657211,-159.0,0.0002226,4]
[311492752,1705162658490,493.29,0.00021625,2]
[311492753,1705162677811,222.50250077,0.00022036,4]
[311492754,1705162679302,359.62041276,0.00022387,10]
[311492755,1705162693624,323.95457532,0.00022163,2]
[311492756,1705162697556,1750.3102,0.00022162,2]
[311492757,1705162702032,119658.0,0.00021943,2]
[311492758,1705162724902,310.16,0.00019532,2]
[311492759,1705162725192,310.16,0.00021796,2]
[311492760,1705162761067,851.23643534,0.00021796,2]
[311492761,1705162777075,323.39286855,0.00021796,2]
[311492762,1705162834287,173.52,0.0002145,2]
[311492763,1705162965940,246.24,0.00021438,2]
[311492764,1705163021701,180.82762916,0.00021417,2]
[311492765,1705163040394,228.03769623,0.00022161,2]
[311492766,1705163053233,161.28,0.0002141,10]
[311492767,1705163056010,2472.30301271,0.00021591,2]
[311492768,1705163068779,737.6,0.00021391,2]
[311492769,1705163086093,7152.5569,0.00022161,2]
[311492770,1705163096282,575.31,0.00021372,2]
[311492771,1705163097223,163.54,0.00021586,2]
[311492772,1705163097753,163.54,0.00022166,2]
[311492773,1705163158934,279.14,0.00019447,2]
[311492774,1705163159135,279.14,0.0002171,2]
[311492775,1705163176685,23900.0,0.00021346,2]
[311492780,1705163213686,309.47548132,0.00022163,2]
[311492784,1705163276035,199.53298421,0.00022161,2]
[311492785,1705163277585,162.08,0.00021375,2]
[311492786,1705163294062,161.94573961,0.00022163,4]
[311492787,1705163325005,55555.0,0.00022161,2]
[311492788,1705163331170,2018.55375895,0.0002216,2]
[311492789,1705163334119,1000.0,0.00022,2]
[311492793,1705163335802,1000.0,0.00021,2]
[311492794,1705163336035,288.66708513,0.00022159,2]
[311492795,1705163337244,1000.0,0.0002,2]
[311492798,1705163343456,532.38898749,0.00019999,2]
[311492828,1705163431659,-370.83678572,0.00022237,2]
[311492829,1705163431669,-150.0,0.00022238,2]
[311492830,1705163431678,-246.91837535,0.00022238,2]
[311492831,1705163431687,-3468.42398075,0.00022258,2]
[311492832,1705163431699,-1177.7496159,0.00022258,2]
[311492833,1705163431710,-1165.618,0.00022258,2]
[311492834,1705163431721,-1278.45,0.00022258,2]
[311492835,1705163431733,-1270.66,0.00022258,2]
[311492836,1705163431750,-2185.30858064,0.00022258,2]
[311492837,1705163431759,-283.00893844,0.00022259,2]
[311492838,1705163431768,-2229.01716879,0.00022259,2]
[311492839,1705163431778,-3245.16301952,0.00022259,4]
[311492840,1705163431787,-2776.59380219,0.00022259,2]
[311492841,1705163431797,-155.0,0.00022259,2]
[311492842,1705163431806,-581.0662314,0.00022259,2]
[311492843,1705163431815,-334.76920382,0.00022259,2]
[311492844,1705163431825,-231.24812846,0.00022259,2]
[311492845,1705163431834,-477.4146353,0.00022259,2]
[311492846,1705163431844,-196.45843195,0.00022259,2]
[311492847,1705163431854,-2016.82656347,0.00022259,2]
[311492848,1705163431863,-288.36702129,0.00022259,2]
[311492849,1705163431874,-531.91686735,0.00022259,2]
[311492850,1705163431883,-179.77863654,0.0002226,2]
[311492851,1705163431892,-500.0,0.0002226,2]
[311492852,1705163431901,-500.0,0.0002226,2]
[311492853,1705163431911,-500.0,0.0002226,2]
[311492854,1705163431922,-1180.04,0.0002226,2]
[311492855,1705163431931,-500.0,0.0002226,2]
[311492856,1705163431941,-500.0,0.0002226,2]
[311492857,1705163431950,-500.0,0.0002226,2]
[311492858,1705163431960,-500.0,0.0002226,2]
[311492859,1705163431969,-500.0,0.0002226,2]
[311492860,1705163431979,-605.69,0.0002226,2]
[311492861,1705163431988,-500.0,0.0002226,2]
[311492862,1705163431998,-500.0,0.0002226,2]
[311492863,1705163432007,-500.0,0.0002226,2]
[311492864,1705163432017,-500.0,0.0002226,2]
[311492865,1705163432026,-500.0,0.0002226,2]
[311492866,1705163432036,-500.0,0.0002226,2]
[311492867,1705163432045,-500.0,0.0002226,2]
[311492868,1705163432054,-500.0,0.0002226,2]
[311492869,1705163432063,-500.0,0.0002226,2]
[311492870,1705163432073,-500.0,0.0002226,2]
[311492871,1705163432082,-500.0,0.0002226,2]
[311492873,1705163432091,-548.94,0.0002226,2]
[311492875,1705163432100,-563.64,0.0002226,2]
[311492877,1705163432109,-500.0,0.0002226,2]
[311492878,1705163432118,-500.0,0.0002226,2]
[311492879,1705163432127,-500.0,0.0002226,2]
[311492880,1705163432136,-500.0,0.0002226,2]
[311492881,1705163432145,-500.0,0.0002226,2]
[311492882,1705163432154,-500.0,0.0002226,2]
[311492883,1705163432164,-500.0,0.0002226,2]
[311492884,1705163432173,-1135.81,0.0002226,2]
[311492885,1705163432182,-1135.81,0.0002226,2]
[311492886,1705163432191,-500.0,0.0002226,2]
[311492887,1705163432203,-500.0,0.0002226,2]
[311492888,1705163432214,-500.0,0.0002226,2]
[311492889,1705163432223,-500.0,0.0002226,2]
[311492890,1705163432233,-500.0,0.0002226,2]
[311492891,1705163432242,-500.0,0.0002226,2]
[311492892,1705163432252,-500.0,0.0002226,2]
[311492893,1705163432261,-283.34424235,0.0002226,2]
[311492895,1705163432269,-500.0,0.0002226,2]
[311492897,1705163432278,-500.0,0.0002226,2]
[311492899,1705163432290,-500.0,0.0002226,2]
[311492901,1705163432300,-500.0,0.0002226,2]
[311492903,1705163432308,-500.0,0.0002226,2]
[311492905,1705163432317,-500.0,0.0002226,2]
[311492907,1705163432327,-548.94,0.0002226,2]
[311492909,1705163432335,-523.02,0.0002226,2]
[311492911,1705163432345,-500.0,0.0002226,2]
[311492913,1705163432353,-500.0,0.0002226,2]
[311492915,1705163432362,-500.0,0.0002226,2]
[311492917,1705163432371,-500.0,0.0002226,2]
[311492918,1705163432381,-500.0,0.0002226,2]
[311492920,1705163432390,-500.0,0.0002226,2]
[311492922,1705163432399,-221.43,0.0002226,2]
[311492924,1705163432409,-500.0,0.0002226,2]
[311492926,1705163432418,-500.0,0.0002226,2]
[311492928,1705163432427,-500.0,0.0002226,2]
[311492930,1705163432436,-500.0,0.0002226,2]
[311492932,1705163432445,-500.0,0.0002226,2]
[311492934,1705163432454,-461.93,0.0002226,2]
[311492936,1705163432462,-500.0,0.0002226,2]
[311492938,1705163432472,-519.86,0.0002226,2]
[311492940,1705163432481,-500.0,0.0002226,2]
[311492942,1705163432490,-644.06,0.0002226,2]
[311492944,1705163432500,-500.0,0.0002226,2]
[311492946,1705163432509,-500.0,0.0002226,2]
[311492948,1705163432518,-501.95,0.0002226,2]
[311492950,1705163432527,-500.0,0.0002226,2]
[311492952,1705163432536,-500.0,0.0002226,2]
[311492954,1705163432545,-500.0,0.0002226,2]
[311492956,1705163432554,-500.0,0.0002226,2]
[311492958,1705163432563,-500.0,0.0002226,2]
[311492960,1705163432572,-500.0,0.0002226,2]
[311492962,1705163432581,-587.31,0.0002226,2]
[311492964,1705163432590,-500.0,0.0002226,2]
[311492966,1705163432599,-500.0,0.0002226,2]
[311492968,1705163432608,-500.0,0.0002226,2]
[311492970,1705163432617,-500.0,0.0002226,2]
[311492972,1705163432626,-201.61,0.0002226,2]
[311492973,1705163432636,-500.0,0.0002226,2]
[311492976,1705163432647,-500.0,0.0002226,2]
[311492977,1705163432657,-500.0,0.0002226,2]
[311492979,1705163432666,-624.0,0.0002226,2]
[311492981,1705163432676,-500.0,0.0002226,2]
[311492983,1705163432685,-500.0,0.0002226,2]
[311492985,1705163432694,-500.0,0.0002226,2]
[311492987,1705163432703,-500.0,0.0002226,2]
[311492989,1705163432713,-500.0,0.0002226,2]
[311492991,1705163432722,-500.0,0.0002226,2]
[311492993,1705163432731,-500.0,0.0002226,2]
[311492995,1705163432740,-500.0,0.0002226,2]
[311492997,1705163432750,-500.0,0.0002226,2]
[311492999,1705163432759,-500.0,0.0002226,2]
[311493001,1705163432768,-500.0,0.0002226,2]
[311493003,1705163432777,-500.0,0.0002226,2]
[311493005,1705163432786,-573.85,0.0002226,2]
[311493007,1705163432795,-573.85,0.0002226,2]
[311493008,1705163432805,-500.0,0.0002226,2]
[311493009,1705163432814,-500.0,0.0002226,2]
[311493010,1705163432823,-500.0,0.0002226,2]
[311493011,1705163432832,-500.0,0.0002226,2]
[311493012,1705163432842,-500.0,0.0002226,2]
[311493013,1705163432853,-500.0,0.0002226,2]
[311493014,1705163432862,-500.0,0.0002226,2]
[311493015,1705163432871,-500.0,0.0002226,2]
[311493016,1705163432880,-500.0,0.0002226,2]
[311493017,1705163432889,-540.31,0.0002226,2]
[311493018,1705163432898,-540.31,0.0002226,2]
[311493019,1705163432908,-500.0,0.0002226,2]
[311493020,1705163432917,-4239.48,0.0002226,2]
[311493021,1705163432927,-527.49,0.0002226,2]
[311493022,1705163432936,-500.0,0.0002226,2]
[311493023,1705163432946,-500.0,0.0002226,2]
[311493024,1705163432956,-500.0,0.0002226,2]
[311493025,1705163432965,-221.77,0.0002226,2]
[311493026,1705163432974,-560.35,0.0002226,2]
[311493027,1705163432983,-500.0,0.0002226,2]
[311493028,1705163432993,-500.0,0.0002226,2]
[311493029,1705163433002,-500.0,0.0002226,2]
[311493030,1705163433012,-607.08,0.0002226,2]
[311493031,1705163433021,-557.18,0.0002226,2]
[311493032,1705163433031,-500.0,0.0002226,2]
[311493033,1705163433040,-500.0,0.0002226,2]
[311493034,1705163433049,-500.0,0.0002226,2]
[311493035,1705163433058,-500.0,0.0002226,2]
[311493036,1705163433067,-524.24,0.0002226,2]
[311493037,1705163433076,-500.0,0.0002226,2]
[311493038,1705163433086,-500.0,0.0002226,2]
[311493039,1705163433095,-500.0,0.0002226,2]
[311493040,1705163433105,-500.0,0.0002226,2]
[311493041,1705163433114,-500.0,0.0002226,2]
[311493042,1705163433123,-500.0,0.0002226,2]
[311493043,1705163433132,-500.0,0.0002226,2]
[311493044,1705163433141,-500.0,0.0002226,2]
[311493045,1705163433151,-500.0,0.0002226,2]
[311493046,1705163433160,-500.0,0.0002226,2]
[311493047,1705163433170,-282.72,0.0002226,2]
[311493048,1705163433178,-500.0,0.0002226,2]
[311493049,1705163433187,-500.0,0.0002226,2]
[311493050,1705163433197,-500.0,0.0002226,2]
[311493051,1705163433206,-500.0,0.0002226,2]
[311493052,1705163433216,-500.0,0.0002226,2]
[311493053,1705163433225,-342.72,0.0002226,2]
[311493054,1705163433235,-500.0,0.0002226,2]
[311493055,1705163433244,-500.0,0.0002226,2]
[311493056,1705163433254,-500.0,0.0002226,2]
[311493057,1705163433263,-500.0,0.0002226,2]
[311493058,1705163433272,-587.52,0.0002226,2]
[311493059,1705163433281,-500.0,0.0002226,2]
[311493060,1705163433290,-500.0,0.0002226,2]
[311493061,1705163433300,-652.33048324,0.0002226,2]
[311493062,1705163433309,-273.73642679,0.0002226,2]
[311493063,1705163433318,-2612.20978271,0.0002226,2]
[311493064,1705163433327,-383.66804724,0.0002226,2]
[311493065,1705163433336,-175.92540811,0.0002226,2]
[311493066,1705163433346,-500.0,0.00022261,2]
[311493067,1705163433355,-500.0,0.00022261,2]
[311493068,1705163433364,-500.0,0.00022261,2]
[311493069,1705163433373,-500.0,0.00022261,2]
[311493070,1705163433382,-500.0,0.00022261,2]
[311493071,1705163433391,-500.0,0.00022261,2]
[311493072,1705163433401,-500.0,0.00022261,2]
[311493073,1705163433410,-500.0,0.00022261,2]
[311493074,1705163433421,-500.0,0.00022261,2]
[311493076,1705163433660,-500.0,0.00022261,2]
[311493077,1705163433669,-500.0,0.00022261,2]
[311493078,1705163433679,-500.0,0.00022261,2]
[311493079,1705163433688,-500.0,0.00022261,2]
[311493080,1705163433696,-500.0,0.00022261,2]
[311493081,1705163433705,-500.0,0.00022261,2]
[311493082,1705163433714,-500.0,0.00022261,2]
[311493083,1705163433723,-500.0,0.00022261,2]
[311493084,1705163433733,-500.0,0.00022261,2]
[311493085,1705163433742,-500.0,0.00022261,2]
[311493086,1705163433751,-500.0,0.00022261,2]
[311493087,1705163433760,-500.0,0.00022261,2]
[311493088,1705163433769,-604.81398504,0.00022261,2]
[311493089,1705163433778,-500.0,0.00022261,2]
[311493090,1705163433787,-500.0,0.00022261,2]
[311493091,1705163433797,-500.0,0.00022261,2]
[311493092,1705163433806,-500.0,0.00022261,2]
[311493093,1705163433815,-500.0,0.00022261,2]
[311493094,1705163433824,-500.0,0.00022261,2]
[311493095,1705163433833,-500.0,0.00022261,2]
[311493096,1705163433842,-500.0,0.00022261,2]
[311493097,1705163433851,-500.0,0.00022261,2]
[311493098,1705163433860,-500.0,0.00022261,2]
[311493099,1705163433869,-500.0,0.00022261,2]
[311493100,1705163433878,-500.0,0.00022261,2]
[311493101,1705163433887,-500.0,0.00022261,2]
[311493102,1705163433897,-500.0,0.00022261,2]
[311493103,1705163433906,-500.0,0.00022261,2]
[311493104,1705163433915,-500.0,0.00022261,2]
[311493105,1705163433925,-500.0,0.00022261,2]
[311493106,1705163433934,-500.0,0.00022261,2]
[311493107,1705163433943,-500.0,0.00022261,2]
[311493108,1705163433953,-500.0,0.00022261,2]
[311493109,1705163433962,-500.0,0.00022261,2]
[311493110,1705163433971,-500.0,0.00022261,2]
[311493111,1705163433981,-500.0,0.00022261,2]
[311493112,1705163433990,-500.0,0.00022261,2]
[311493113,1705163433999,-500.0,0.00022261,2]
[311493114,1705163434009,-500.0,0.00022261,2]
[311493115,1705163434018,-500.0,0.00022261,2]
[311493116,1705163434027,-500.0,0.00022261,2]
[311493117,1705163434036,-500.0,0.00022261,2]
[311493118,1705163434045,-500.0,0.00022261,2]
[311493119,1705163434056,-500.0,0.00022261,2]
[311493120,1705163434065,-500.0,0.00022261,2]
[311493121,1705163434074,-500.0,0.00022261,2]
[311493122,1705163434083,-500.0,0.00022261,2]
[311493123,1705163434092,-500.0,0.00022261,2]
[311493124,1705163434101,-500.0,0.00022261,2]
[311493125,1705163434112,-500.0,0.00022261,2]
[311493126,1705163434121,-500.0,0.00022261,2]
[311493127,1705163434129,-500.0,0.00022261,2]
[311493128,1705163434138,-500.0,0.00022261,2]
[311493129,1705163434147,-500.0,0.00022261,2]
[311493130,1705163434156,-500.0,0.00022261,2]
[311493131,1705163434166,-500.0,0.00022261,2]
[311493132,1705163434176,-500.0,0.00022261,2]
[311493133,1705163434186,-500.0,0.00022261,2]
[311493134,1705163434196,-567.56,0.00022261,2]
[311493135,1705163434208,-500.0,0.00022261,2]
[311493136,1705163434217,-500.0,0.00022261,2]
[311493137,1705163434226,-500.0,0.00022261,2]
[311493138,1705163434235,-500.0,0.00022261,2]
[311493139,1705163434244,-269.23962559,0.00022261,2]
[311493140,1705163434254,-511.90724824,0.00022261,2]
[311493141,1705163434263,-500.0,0.00022261,2]
[311493142,1705163434273,-500.0,0.00022261,2]
[311493143,1705163434282,-500.0,0.00022261,2]
[311493144,1705163434292,-500.0,0.00022261,2]
[311493145,1705163434300,-500.0,0.00022261,2]
[311493146,1705163434310,-500.0,0.00022261,2]
[311493147,1705163434318,-500.0,0.00022261,2]
[311493148,1705163434328,-500.0,0.00022261,2]
[311493149,1705163434337,-500.0,0.00022261,2]
[311493150,1705163434346,-500.0,0.00022261,2]
[311493151,1705163434355,-500.0,0.00022261,2]
[311493152,1705163434364,-500.0,0.00022261,2]
[311493153,1705163434373,-500.0,0.00022261,2]
[311493154,1705163434382,-501.54,0.00022261,2]
[311493155,1705163434391,-500.0,0.00022261,2]
[311493156,1705163434400,-500.0,0.00022261,2]
[311493157,1705163434409,-500.0,0.00022261,2]
[311493158,1705163434418,-500.0,0.00022261,2]
[311493159,1705163434433,-500.0,0.00022261,2]
[311493160,1705163434442,-500.0,0.00022261,2]
[311493161,1705163434451,-500.0,0.00022261,2]
[311493162,1705163434460,-500.0,0.00022261,2]
[311493163,1705163434469,-500.0,0.00022261,2]
[311493164,1705163434478,-500.0,0.00022261,2]
[311493165,1705163434487,-500.0,0.00022261,2]
[311493166,1705163434496,-500.0,0.00022261,2]
[311493167,1705163434505,-500.0,0.00022261,2]
[311493168,1705163434514,-1000.0,0.00022261,2]
[311493169,1705163434523,-500.0,0.00022261,2]
[311493170,1705163434532,-500.0,0.00022261,2]
[311493171,1705163434541,-500.0,0.00022261,2]
[311493172,1705163434550,-500.0,0.00022261,2]
[311493173,1705163434559,-500.0,0.00022261,2]
[311493174,1705163434568,-500.0,0.00022261,2]
[311493175,1705163434577,-500.0,0.00022261,2]
[311493176,1705163434586,-500.0,0.00022261,2]
[311493177,1705163434595,-500.0,0.00022261,2]
[311493178,1705163434605,-341.28537716,0.00022261,2]
[311493179,1705163434614,-500.0,0.00022261,2]